Cogmind - Beta 13 @@@ ROGUE MODE // 2024.04.12 @ 23:42:06 Player: DarkCat Result: Destroyed by Y-54 Guardian with Gatling Laser Performance ------------- Evolutions (3) 1500 Regions Visited (4) 800 Robots Destroyed (49) 245 Value Destroyed (1276) 1276 Prototype IDs (0) 0 Alien Tech Used (0) 0 Bonus (0) 0 TOTAL SCORE: 3821 Bonus ------- None Cogmind --------- Core Integrity 0/700 Matter 45/300 Energy 350/350 System Corruption 0% Temperature Cool (6) Movement Core (1550) Ox30 Location -7/Factory Parts ------- > --- POWER (1) -------- (None) > --- PROPULSION (3) --- (None) > --- UTILITY (5) ------ Thermal Generator Heat Sink Huge Storage Unit High-capacity Battery Signal Interpreter > --- WEAPON (4) ------- (None) > --- INVENTORY (25) --- Weight Redist. System Advanced Visual Processing Unit Weapon Cycler Weapon Cycler Reaction Control System Insulated Plating Peak State ------------ > --- POWER ------------ Nuclear Core > --- PROPULSION ------- Carbon-fiber Leg VSS Leg Improved Titanium Leg > --- UTILITY ---------- Huge Storage Unit Signal Interpreter Improved Terrain Scanner Light Armor Plating Field Recycling Unit > --- WEAPON ----------- Heavy Laser Minigun Flak Cannon Katana > --- INVENTORY -------- Improved Ion Engine Light Nuclear Core Thermal Generator Heat Sink High-capacity Battery Weight Redist. System Advanced Visual Processing Unit Weapon Cycler Weapon Cycler Reaction Control System Insulated Plating [Rating: 36] Favorites ----------- Power Ion Engine Engine Ion Engine Power Core Nuclear Core Propulsion Carbon-fiber Leg Leg Carbon-fiber Leg Wheel Compact Wheel Utility Signal Interpreter Device Improved Terrain Scanner Storage Huge Storage Unit Processor Signal Interpreter Protection Propulsion Shielding Weapon Assault Rifle Energy Gun Medium Laser Ballistic Gun Assault Rifle Ballistic Cannon Flak Cannon Launcher Rocket Launcher Slashing Weapon Katana Build | -11 -10 -9 -8 -7 ------- Run | Yrd Mat Mat Mat Fac Slots Evolved 6 | . . 2 2 2 Power . | . . . . . Propulsion 1 | . . 1 . . Utility 3 | . . 1 1 1 Weapon 2 | . . . 1 1 Parts Attached 56 | 6 8 14 15 13 Power 8 | 1 1 1 2 3 Engine 6 | 1 1 1 2 1 Core 2 | . . . . 2 Reactor . | . . . . . Propulsion 17 | 2 5 6 3 1 Treads . | . . . . . Leg 4 | . . . 3 1 Wheel 13 | 2 5 6 . . Hover . | . . . . . Flight . | . . . . . Utility 16 | 1 1 3 5 6 Device 6 | . . 1 2 3 Storage 3 | 1 . . 1 1 Processor 1 | . . 1 . . Hackware . | . . . . . Protection 6 | . 1 1 2 2 Artifact . | . . . . . Weapon 15 | 2 1 4 5 3 Energy Gun 2 | 1 . . . 1 Energy Cannon . | . . . . . Ballistic Gun 9 | 1 1 4 2 1 Ballistic Cannon 1 | . . . 1 . Launcher 1 | . . . 1 . Special Weapon . | . . . . . Impact Weapon . | . . . . . Slashing Weapon 2 | . . . 1 1 Piercing Weapon . | . . . . . Special Melee Weapon . | . . . . . Unidentified Prototypes . | . . . . . Parts Lost 34 | . . 7 9 18 Power 6 | . . 1 2 3 Propulsion 10 | . . 3 3 4 Utility 8 | . . 1 2 5 Weapon 10 | . . 2 2 6 Highest Loss Streak 15 | . . 6 5 15 To Critical Strikes . | . . . . . Average Slot Usage (%) 91 | . 96 94 88 90 Engine 6 | . 14 10 7 . Core 1 | . . . . 6 Leg 12 | . . . 17 20 Wheel 12 | . 28 29 6 . Device 7 | . . 7 4 12 Storage 9 | . 14 11 9 7 Processor 6 | . . 3 9 7 Protection 10 | . 10 10 12 7 Energy Gun 1 | . 10 . . . Ballistic Gun 14 | . 17 21 10 11 Ballistic Cannon 2 | . . . . 6 Launcher 2 | . . . 2 5 Slashing Weapon 3 | . . . 7 1 Naked Turns . | . . . . . Heaviest Build 114 | 12 15 25 102 114 Greatest Support 48 | 26 26 48 48 47 Greatest Overweight (x) 32 | . . . 7 32 Average Overweight (x) 1 | . . . 2 2 Largest Inventory Capacity 25 | 8 8 8 25 25 Average Capacity 18 | 6 8 8 23 25 Most Carried 15 | 5 8 8 13 15 Average Carried 9 | 2 6 7 9 12 Final Capacity 25 | 8 8 8 25 25 Final Carried 13 | 4 8 7 13 6 Class Distribution -------------------- 38% | Scavenger-Mutant 35% | Mutant 21% | Scavenger-Tank 3% | Scavenger-Skirmisher Dominant Class ---------------- Mutant | -10/Materials Mutant | -9/Materials Scavenger-Mutant | -8/Materials Scavenger-Tank | -7/Factory Resources | -11 -10 -9 -8 -7 ----------- Run | Yrd Mat Mat Mat Fac Matter Collected 1246 | 260 91 615 182 98 Remotely . | . . . . . Salvage Created 1741 | . 185 1091 238 227 Parts 117 | . 18 59 20 20 Haulers Intercepted 1 | . . 1 . . Recyclers Shooed 3 | . . 3 . . Parts Field Recycled 12 | . . . . 12 Retrieved Matter 55 | . . . . 55 Parts Self-Destructed . | . . . . . Prevented . | . . . . . Kills | -11 -10 -9 -8 -7 ------- Run | Yrd Mat Mat Mat Fac Combat Hostiles Destroyed 32 | . 6 14 5 7 Guns 24 | . 6 14 4 . Cannons 3 | . . . . 3 AOE 5 | . . . 1 4 Classes Destroyed 11 | . 4 4 2 1 Worker 2 | . 1 1 . . Builder 1 | . . . . 1 Hauler 1 | . . 1 . . Recycler 6 | . . 6 . . Operator 1 | . . . 1 . Watcher 6 | . 1 3 1 1 Swarmer 10 | . 3 6 1 . Grunt 14 | . 3 5 . 6 Duelist 2 | . . 1 . 1 Sentry 5 | . . 2 3 . Hunter 1 | . . . 1 . Best Kill Streak 6 | . 5 6 2 5 Combat Bots Only 4 | . 4 3 2 4 Max Kills in Single Turn 2 | . 1 1 1 2 Gunslinging . | . . . . . Exploded 2 | . . . 1 2 Melee . | . . . . . Uniques/NPCs Destroyed . | . . . . . Combat | -11 -10 -9 -8 -7 -------- Run | Yrd Mat Mat Mat Fac Hostile Shots Fired 508 | . 30 94 74 310 Missed 154 | . 9 20 18 107 Damage Taken 4206 | . 195 902 823 2286 Core 1052 | . 45 98 203 706 Absorbed by Shields . | . . . . . Redirected to Shielding 146 | . 20 42 80 4 Core Remaining (%) 80 | 100 82 75 63 . Volleys Fired 155 | . 24 75 35 21 Largest 4 | . 2 2 3 4 Hottest 122 | . 70 46 102 122 Shots Fired 283 | . 48 146 41 48 Gun 251 | . 48 146 37 20 Cannon 20 | . . . 1 19 Launcher 12 | . . . 3 9 Special . | . . . . . Kinetic 251 | . 31 146 38 36 Thermal 20 | . 17 . . 3 Explosive 12 | . . . 3 9 Electromagnetic . | . . . . . Robot Hit Streak 12 | . 5 12 9 7 Robot Miss Streak 8 | . 2 4 2 8 Penetration Max . | . . . . . Secondary Targets 2 | . 1 1 . . Max Gunslinging Chain 1 | . 1 1 . . Shots Hit Robots 192 | . 32 95 33 32 Core Hits 96 | . 11 36 16 33 Critical Kills . | . . . . . Critical Parts Destroyed 1 | . . . 1 . Critical Strikes 2 | . 1 . 1 . Burn 1 | . 1 . . . Destroy 1 | . . . 1 . Melee Attacks 1 | . . . 1 . Impact . | . . . . . Slashing 1 | . . . 1 . Piercing . | . . . . . Sneak Attacks . | . . . . . Combat Hostiles . | . . . . . Follow-up Attacks . | . . . . . Damage Inflicted 3553 | . 398 1450 516 1189 Guns 2361 | . 398 1450 366 147 Cannons 299 | . . . 26 273 Explosions 893 | . . . 124 769 Melee . | . . . . . Ramming . | . . . . . Kinetic 2511 | . 288 1450 392 381 Thermal 149 | . 110 . . 39 Explosive 893 | . . . 124 769 Electromagnetic . | . . . . . Impact . | . . . . . Slashing . | . . . . . Piercing . | . . . . . Highest Corruption 1 | . . . 1 . Average Corruption 1 | . . . 1 . Corruption Purged . | . . . . . Corruption Blocked . | . . . . . Effects 1 | . . . 1 . Matter Fused 1 | . . . 1 . Overload Shots . | . . . . . Overflow Damage 56 | . . . . 56 Projectiles . | . . . . . Explosions 56 | . . . . 56 Melee . | . . . . . Knockbacks 6 | . . . . 6 Impact . | . . . . . Kinetic 6 | . . . . 6 Secondary . | . . . . . Self-Inflicted Damage 144 | . . . 28 116 Shots 4 | . . . 1 3 Rammed . | . . . . . Targets Rammed . | . . . . . Kicked . | . . . . . Crushed . | . . . . . Highest Temperature 236 | . 69 14 27 236 Average Temperature 51 | . 28 4 11 93 Received Heat Transfer 1239 | . 60 264 180 735 Siege Activations . | . . . . . Robots Corrupted . | . . . . . Combat Hostiles . | . . . . . Parts Fried . | . . . . . Impact Corruptions . | . . . . . Robots Melted . | . . . . . Combat Hostiles . | . . . . . Parts Melted 1 | . 1 . . . Heat Transferred 481 | . 407 . . 74 Parts Sabotaged . | . . . . . Parts Stolen . | . . . . . Parts Stripped . | . . . . . Power Chain Reactions . | . . . . . Alert | -11 -10 -9 -8 -7 ------- Run | Yrd Mat Mat Mat Fac Peak Influence 409 | . 192 409 227 179 Initial 117 | . . 80 117 . Average 127 | . 85 235 101 95 Maximum Alert Level 2 | . . 2 1 . Low Security (%) 78 | 100 100 33 83 100 Level 1 20 | . . 62 16 . Level 2 . | . . 3 . . Level 3 . | . . . . . Level 4 . | . . . . . Level 5 . | . . . . . High Security . | . . . . . Max Security . | . . . . . Squads Dispatched 10 | . 2 . 5 3 Investigation 1 | . . . 1 . Extermination . | . . . . . Reinforcement 4 | . 2 . 1 1 Assault . | . . . . . Garrison 5 | . . . 3 2 Intercept . | . . . . . Searches Triggered . | . . . . . Construction Impeded 1 | . . . . 1 Haulers Reinforced . | . . . . . Active Scanning Responses . | . . . . . Cargo Convoy Interrupts . | . . . . . Stealth | -11 -10 -9 -8 -7 --------- Run | Yrd Mat Mat Mat Fac Distress Signals 3 | . . 3 . . Communications Jammed . | . . . . . Distress Signals . | . . . . . Times Spotted 56 | . 11 19 10 16 Peak Tracking Total 5 | . 4 4 4 5 Tactical Retreats 7 | . . 1 2 4 Traps | -11 -10 -9 -8 -7 ------- Run | Yrd Mat Mat Mat Fac Traps Triggered 2 | . . . 2 . Indirectly . | . . . . . Trap Hack Attempts . | . . . . . Triggered . | . . . . . Disarmed . | . . . . . Reprogrammed . | . . . . . Reused . | . . . . . Traps Extracted . | . . . . . Installed . | . . . . . Triggered . | . . . . . Machines | -11 -10 -9 -8 -7 ---------- Run | Yrd Mat Mat Mat Fac Machines Disabled 7 | . . 1 1 5 Max in Single Turn 2 | . . 1 1 2 Machines Repaired . | . . . . . Machines Dismantled . | . . . . . Machines Sabotaged . | . . . . . Overloaded Fab Kills . | . . . . . Hacking | -11 -10 -9 -8 -7 --------- Run | Yrd Mat Mat Mat Fac Machines Accessed 2 | . 1 . 1 . Terminals 2 | . 1 . 1 . Fabricators . | . . . . . Repair Stations . | . . . . . Recycling Units . | . . . . . Scanalyzers . | . . . . . Garrison Access . | . . . . . Total Hacks 3 | . 1 . 2 . Successful 3 | . 1 . 2 . Failed . | . . . . . Catastrophic . | . . . . . Database Lockouts . | . . . . . Manual . | . . . . . Terminals 3 | . 1 . 2 . Fabricators . | . . . . . Repair Stations . | . . . . . Recycling Units . | . . . . . Scanalyzers . | . . . . . Garrison Access . | . . . . . Terminal Hacks 3 | . 1 . 2 . Record 1 | . 1 . . . Investigation Status 1 | . . . 1 . Recall Investigation 1 | . . . 1 . Fabricator Hacks . | . . . . . Repair Station Hacks . | . . . . . Recycling Unit Hacks . | . . . . . Scanalyzer . | . . . . . Garrison Access Hacks . | . . . . . Unauthorized Hacks . | . . . . . Terminals . | . . . . . Fabricators . | . . . . . Repair Stations . | . . . . . Recycling Units . | . . . . . Scanalyzers . | . . . . . Garrison Access . | . . . . . Data Cores Recovered 1 | . . . 1 . Used . | . . . . . Hacking Detections . | . . . . . Full Trace Events . | . . . . . Feedback Events . | . . . . . Feedback Blocked . | . . . . . Robot Schematics Acquired . | . . . . . Robots Built . | . . . . . Authchips . | . . . . . Time . | . . . . . Total Robot Build Rating . | . . . . . Part Schematics Acquired . | . . . . . Parts Built . | . . . . . Authchips . | . . . . . Time . | . . . . . Total Part Build Rating . | . . . . . Parts Repaired . | . . . . . Time . | . . . . . Parts Recycled . | . . . . . Recycled Matter . | . . . . . Retrieved Matter . | . . . . . Retrieved Components . | . . . . . Parts Scanalyzed . | . . . . . Part Schematics Acquired . | . . . . . Parts Damaged . | . . . . . Bothacking | -11 -10 -9 -8 -7 ------------ Run | Yrd Mat Mat Mat Fac Used RIF Installer . | . . . . . Robots Hacked . | . . . . . Non-combat . | . . . . . Combat . | . . . . . Robot Hacks Applied . | . . . . . Relay Couplers Released . | . . . . . Fabnet Peak Effective % . | . . . . . Robots Rewired . | . . . . . Allies Hacked . | . . . . . Hacks Repelled . | . . . . . Allies | -11 -10 -9 -8 -7 -------- Run | Yrd Mat Mat Mat Fac Total Allies . | . . . . . Largest Group . | . . . . . Highest-Rated Group . | . . . . . Highest-Rated Ally . | . . . . . Total Orders . | . . . . . Ally Attacks . | . . . . . Total Damage . | . . . . . Kills . | . . . . . Allies Corrupted . | . . . . . Allies Melted . | . . . . . Intel | -11 -10 -9 -8 -7 ------- Run | Yrd Mat Mat Mat Fac Robot Analysis Total . | . . . . . Derelict Logs Recovered . | . . . . . Drone Launches . | . . . . . Drone Recoveries . | . . . . . Exploration | -11 -10 -9 -8 -7 ------------- Run | Yrd Mat Mat Mat Fac Turns Passed 2239 | 49 227 536 807 620 Spaces Moved 993 | 41 151 279 337 185 Core 13 | 10 . . . 3 Treads . | . . . . . Legs 338 | . . . 156 182 Wheels 642 | 31 151 279 181 . Hover . | . . . . . Flight . | . . . . . Fastest Speed 50 | 50 80 86 100 262 Average Speed 162 | 80 87 90 197 286 Slowest Speed 1650 | 90 90 100 720 1650 Overloaded Moves . | . . . . . Propulsion Burnouts . | . . . . . Robots Hopped . | . . . . . Cave-ins Triggered . | . . . . . Exploration Rate (%) 20 | 3 33 25 35 4 Regions Visited 4 Branch Regions . Pre-discovered Areas . | . . . . . Known Exits Taken 2 | . . 1 1 . Unknown Exits Taken 2 | 1 1 . . . Scrap Searched . | . . . . . Spaces Dug . | . . . . . Terrain Destroyed 82 | . . . 32 50 Melee . | . . . . . Projectile . | . . . . . AOE 82 | . . . 32 50 Terrain Rammed . | . . . . . Walls Destroyed . | . . . . . Machines Disabled . | . . . . . Actions | -11 -10 -9 -8 -7 --------- Run | Yrd Mat Mat Mat Fac Total 1351 | 56 197 424 437 237 Wait 69 | . . 27 31 11 Move 989 | 40 150 278 336 185 Hop . | . . . . . Pick Up 63 | 10 10 19 18 6 Fast Attach . | . . . . . Attach 39 | 6 1 9 11 12 Detach . | . . . . . Swap 17 | . 7 5 4 1 Drop 18 | . 5 11 1 1 Fire 155 | . 24 75 35 21 Melee 1 | . . . 1 . Ram . | . . . . . Kick . | . . . . . Crush . | . . . . . Escape Stasis . | . . . . . Rewire . | . . . . . Trap . | . . . . . Miscellaneous . | . . . . . Route ------- -11/Scrapyard -10/Materials -9/Materials -8/Materials -7/Factory History --------- Turn | Location | Event 31 | -11/Scrapyard | Discovered new exit (range 15) 50 | -11/Scrapyard | Entered Materials 273 | -10/Materials | Discovered new exit (range 6) 277 | -10/Materials | Entered another Materials area 277 | -9/Materials | Evolved 2 slots: Propulsion x1, Utility x1 318 | -9/Materials | Build established: Mutant 670 | -9/Materials | Lost 6 parts (1p2n1u2w) 797 | -9/Materials | Discovered new exit (range 16) 811 | -9/Materials | Identified exit to Materials 813 | -9/Materials | Entered another Materials area 813 | -8/Materials | Evolved 2 slots: Utility x1, Weapon x1 930 | -8/Materials | Garrison activated, responded to threat 931 | -8/Materials | Build established: Scavenger-Mutant 984 | -8/Materials | Lost 5 parts (2p2n1w) 1581 | -8/Materials | Discovered new exit (range 14) 1617 | -8/Materials | Identified exit to Factory 1620 | -8/Materials | Entered Factory 1620 | -7/Factory | Evolved 2 slots: Utility x1, Weapon x1 1750 | -7/Factory | Garrison activated, responded to threat 1931 | -7/Factory | Build established: Scavenger-Tank 2156 | -7/Factory | Garrison activated, responded to threat 2199 | -7/Factory | Core integrity fell below 50% 2223 | -7/Factory | Core integrity fell below 20% 2226 | -7/Factory | Lost 15 parts (2p4n4u5w) 2240 | -7/Factory | Destroyed by Y-54 Guardian with Gatling Laser Last Messages --------------- 02165_ Lgt. Armor Plating destroyed. 02165_ Carbon-fiber Leg destroyed. 02166_ Penetrated by Slug. 02166_ Katana destroyed. 02167_ U-05 Engineer lays Concrete. 02170_ Critical hit (Burn: +37). 02172_ Slug penetrates Matter Pump. 02172_ Flak Cannon destroyed. 02175_ Slug penetrates Matter Pump. 02178_ Lgt. Nuclear Core destroyed. 02180_ Critical hit (Burn: +37). 02184_ Imp. Titanium Leg destroyed. 02184_ Field Recycling Unit destroyed. 02185_ H-55 Commando destroyed. 02192_ Imp. Terrain Scanner destroyed. 02192_ R-06 Scavenger collects Carbon-fiber Leg. 02195_ Hvy. Laser destroyed. 02196_ R-06 Scavenger collects Assault Rifle. 02200_ Critical hit (Burn: +37). 02226_ Imp. Ion Engine destroyed. Map ----- +----------------------------------------------------+ | ??????#???# "T" !! #??????? ????????????????????? | | ??????????# !! #??#? ??????????????????????? | | ??????????# #???# ??????????????????????? | | ?????????## #?#?? ""????????????????????? | | ?##############+##+####?# "?? ??????????????????? | | ?? #?## #?# ? ? ?? ?????????????? | | ?? #?## #?# "?"??? !!????????? | | ??" " " " #??# #?# """? # !!????????? | | " " " " " #### ### """? # ????????? | | " " " " " + T## # ????????? | | " " " " " ###### #? """ # #?##?????? | | " " " " " #????## ##? """ # #? ######? | | " " " " " ####### ##? """ # #? // ?? | | " " " " " # # #? ?# # / ? | | " " " " " # # #### ###### # ?? | | " " " " " #"" # ########### # """"?? | | #"" # % # ??? | | ###+########G + r % # ""???" | | #???#"" # ##### "" ???? ? | | ##??#"" # # # #g "%% " " " % ###??????? | | #??## # ### %%" %"" "" #??#???? | | #???#######+##### ##?? ????# | | #??# """ # Y""" """ "" #???????? | | ###+####??# "T" # """ """ " ###???#??? | | ??? ???? # " " # """ """ " ## #??? | | ??????????# # @ / | | ?????? ? ?# # """ """ " ### ## # | | ?????? ??# """"""""" + """ """ "" =%###?+##??? | | ???????? ?# # """ """ " " !!# ? | | ??????????# """"""""" # !# !!] ! | | ????????? # # #?![] | | ??????????# """"""""" # ! * #?![] | | ?????????????? #############+############# | | ???????????????= #?#?## #?##?? | | ????????????????########????# """ """ """ #????? | | ????????????????????#?????#?# """ """ """ #????? | | ??????????#????#???#?#???##?# """ """ """ #????? | | ????????????????????????#???# #???#? | | ????????????????????????????# """ """ """ #?#??# | | ????????????????????????#???# """ """ """ #?#?#? | | ?????????????????????????#?## """ """ """ ##???? | | ??????????????????????????#?# #????? | | ??????????????????????#?????# #????# | | ??????????????????????????#?#################?###? | | | | | | | | | | | | | +----------------------------------------------------+ Best States ------------- Heat Dissipation 44 Energy Generation 14 Energy Capacity 515 Matter Stores 300 Matter Capacity 300 Sight Range 16 Terrain Scan Range 16 Terrain Scan Density 10 Armor Coverage 150 Core Shielding 20 Propulsion Shielding 33 Evasion (%) 50 Item Schematics ----------------- None Robot Schematics ------------------ None Fabricated ------------ Nothing Alien Tech Used ----------------- None Achievements -------------- None Challenges ------------ None Game ------ Seed CatalystMetafieldSource Manual? 0 Play Time 00:25:40 Cumulative 4.9 hours Start 2024.04.12 @ 23:19:04 End 2024.04.12 @ 23:42:06 Sessions 1 Manual Loads 0 Difficulty Rogue Special Mode None Game No. 12 Rogue 10 Adventurer 2 Explorer 0 Win Type - Total 0 Types 0/0/0/0/0/0/0/0/0 Lore% 5 Gallery% 11 Achievement% 12 Wizard Run 0 Options --------- Layout 1 ASCII 0 Keyboard 0 Movement Mouse Keybinds 0 Fullscreen 2 Font 24/Crisp Map View 50x35 Zoom Use 0% Tactical HUD 1 Map Filters NONE Filters NONE Steam 1 RUN: a487e6a0-6aa2-47f4-95b3-e2f2717e7514